Cogmind - Beta 10.2 --- EXPLORER MODE // 2020.11.17 @ 16:08:09 // Winter2019/RPGLIKE Player: Chydax Result: Destroyed by H-66 Slayer with Gauss Rifle Performance ------------- Evolutions (4) 2000 Regions Visited (15) 3000 Robots Destroyed (327) 1635 Value Destroyed (9068) 9068 Prototype IDs (31) 620 Alien Tech Used (0) 0 Bonus (717) 717 TOTAL SCORE: 17040 Bonus ------- High Alert Combat Kills 106 Follower Combat Kills 107 Aligned with FarCom 300 Met Data Miner 300 Friendly Fire -96 Cogmind --------- Core Integrity 0/1350 Matter 426/450 Energy 924/940 System Corruption 1% Temperature Cool (0) Movement Walking (125) Location -6/Extension Parts ------- > --- POWER (2) -------- Micro Fission Core Light Antimatter Reactor > --- PROPULSION (4) --- Carbon-fiber Leg Carbon-fiber Leg Improved Titanium Leg Improved Titanium Leg > --- UTILITY (7) ------ Advanced Heat Sink High-capacity Battery Enhanced Optical Array Long-range Sensor Array Improved ECM Suite Phase Shifter Improved Hacking Suite > --- WEAPON (3) ------- EM Pulse Cannon Neutron Cannon Gauss Rifle > --- INVENTORY (8) ---- Light Fission Core Improved Reclamation Unit Shock Rifle Phase Cannon Precision Grenade Launcher Power Sword Peak State ------------ > --- POWER ------------ Micro Fission Core Light Antimatter Reactor > --- PROPULSION ------- Carbon-fiber Leg Carbon-fiber Leg Improved Titanium Leg Improved Titanium Leg > --- UTILITY ---------- Advanced Heat Sink High-capacity Battery Enhanced Optical Array Long-range Sensor Array Improved ECM Suite Phase Shifter Improved Hacking Suite > --- WEAPON ----------- EM Pulse Cannon Neutron Cannon Gauss Rifle > --- INVENTORY -------- Light Fission Core Improved Reclamation Unit Shock Rifle Phase Cannon Precision Grenade Launcher Power Sword [Rating: 69] Favorites ----------- Power Light Ion Engine Engine Light Ion Engine Power Core Enhanced Nuclear Core Reactor Antimatter Reactor Propulsion Improved Treads Treads Improved Treads Leg Improved Titanium Leg Hover Unit Aerolev Unit Flight Unit Improved Flight Unit Utility High-capacity Matter Pod Device High-powered Tractor Beam Storage High-capacity Matter Pod Processor Advanced Signal Interpreter Hackware Improved Hacking Suite Protection Propulsion Shielding Weapon EM Pulse Gun Energy Gun EM Pulse Gun Energy Cannon Advanced Beam Cannon Ballistic Gun Heavy Assault Rifle Ballistic Cannon Assault Cannon Launcher EMP Blaster Special Weapon Welding Torch Impact Weapon Powered Hammer Slashing Weapon Chainsword Build | -11 -10 -10 -9 -9 -9 -8 -8 -7 -7 -7 -7 -7 -6 -6 -6 ------- Run | Scr Mat Min Mat Min Exi Min Mat Fac Was Fac Low Dat Pro Fac Ext Slots Evolved 12 | 5 . 1 3 . . . 1 2 . . . . . . . Power 1 | 1 . . . . . . . . . . . . . . . Propulsion 3 | 2 . . . . . . . 1 . . . . . . . Utility 6 | 1 . 1 2 . . . 1 1 . . . . . . . Weapon 2 | 1 . . 1 . . . . . . . . . . . . Parts Attached 180 | 8 3 . 29 5 2 . 28 41 13 14 3 . 9 16 9 Power 26 | 2 . . 2 . . . 4 7 3 2 . . 3 2 1 Engine 9 | 2 . . 2 . . . 2 1 . 2 . . . . . Core 11 | . . . . . . . 2 6 . . . . 1 1 1 Reactor 6 | . . . . . . . . . 3 . . . 2 1 . Propulsion 29 | 2 1 . 3 . . . 8 6 3 4 . . . . 2 Treads 20 | 2 1 . 3 . . . 5 6 3 . . . . . . Leg 6 | . . . . . . . . . . 4 . . . . 2 Wheel . | . . . . . . . . . . . . . . . . Hover 1 | . . . . . . . 1 . . . . . . . . Flight 2 | . . . . . . . 2 . . . . . . . . Utility 50 | 2 . . 9 2 2 . 5 10 5 2 2 . 4 2 5 Device 32 | 1 . . 3 2 . . 3 8 4 2 1 . 3 . 5 Storage 8 | . . . 3 . 2 . . 1 . . 1 . . 1 . Processor 6 | . . . 1 . . . 2 . 1 . . . 1 1 . Hackware 1 | . . . . . . . . 1 . . . . . . . Protection 3 | 1 . . 2 . . . . . . . . . . . . Artifact . | . . . . . . . . . . . . . . . . Weapon 75 | 2 2 . 15 3 . . 11 18 2 6 1 . 2 12 1 Energy Gun 27 | . 1 . 5 . . . 6 12 1 . 1 . . 1 . Energy Cannon 11 | . . . 2 1 . . . 1 1 1 . . 1 3 1 Ballistic Gun 13 | 2 1 . 2 . . . 1 . . . . . 1 6 . Ballistic Cannon 12 | . . . 3 1 . . 3 5 . . . . . . . Launcher 6 | . . . 3 . . . . . . 3 . . . . . Special Weapon 1 | . . . . . . . . . . . . . . 1 . Impact Weapon 1 | . . . . . . . . . . 1 . . . . . Slashing Weapon 4 | . . . . 1 . . 1 . . 1 . . . 1 . Piercing Weapon . | . . . . . . . . . . . . . . . . Special Melee Weapon . | . . . . . . . . . . . . . . . . Unidentified Prototypes 19 | . . . 2 1 2 . 6 6 . 1 . . 1 . . Parts Lost 12 | . . . . . . . . 1 10 . . . . . 1 Power 2 | . . . . . . . . . 2 . . . . . . Propulsion 1 | . . . . . . . . . 1 . . . . . . Utility 7 | . . . . . . . . 1 5 . . . . . 1 Weapon 2 | . . . . . . . . . 2 . . . . . . Highest Loss Streak 7 | . . . . . . . . 1 7 . . . . . 1 Average Slot Usage (%) 97 | . 99 96 97 100 100 100 99 99 60 77 90 93 98 99 97 Engine 7 | . 22 21 16 15 15 15 10 . . 9 6 6 1 . . Core 5 | . . . . . . . 4 13 5 . . . 4 4 6 Reactor 1 | . . . . . . . . . . . . . 4 7 6 Treads 18 | . 32 32 25 23 23 23 22 21 12 . . . . . . Leg 4 | . . . . . . . . . . 23 25 25 25 25 23 Device 16 | . 11 10 11 15 12 7 13 20 11 15 28 31 28 18 21 Storage 12 | . . . 8 15 17 23 18 16 13 6 6 6 6 5 6 Processor 4 | . . . 7 7 7 7 7 2 1 . . . 2 11 8 Hackware 2 | . . . . . . . . 3 6 6 6 6 6 6 6 Protection 1 | . 11 10 4 . . . . . . . . . . . . Energy Gun 6 | . 5 10 9 7 7 7 6 9 2 . 3 6 2 . . Energy Cannon 2 | . . . . 4 7 7 . . 2 3 6 6 6 9 12 Ballistic Gun 4 | . 16 10 6 2 . . 6 2 . . . . 3 5 6 Ballistic Cannon 4 | . . . 3 7 7 7 6 6 2 . . . . . . Naked Turns . | . . . . . . . . . . . . . . . . Heaviest Build 56 | 11 13 13 28 29 33 33 39 50 47 42 35 35 56 55 47 Greatest Support 85 | 40 60 60 66 66 66 66 66 85 85 75 75 75 75 75 75 Greatest Overweight (x) 3 | . . . . . . . . . 3 . . . . . . Average Overweight (x) . | . . . . . . . . . . . . . . . . Largest Inventory Capacity 8 | 2 2 2 4 4 4 5 6 6 6 6 6 6 7 8 8 Average Capacity 5 | 2 2 2 3 4 4 4 5 6 6 6 6 6 6 7 8 Most Carried 8 | 2 2 2 4 4 4 4 6 6 6 5 5 5 7 8 8 Average Carried 4 | 1 1 1 3 3 4 4 5 5 4 2 3 5 5 7 6 Final Capacity 8 | 2 2 2 4 4 4 5 6 6 6 6 6 6 7 8 8 Final Carried 8 | 2 2 2 4 4 4 4 6 6 . 4 5 5 7 8 6 Class Distribution -------------------- 81% | Hacker-Skirmisher 12% | Hacker-Mutant Dominant Class ---------------- Hacker-Mutant | -10/Materials Hacker-Mutant | -10/Mines Hacker-Skirmisher | -9/Materials Hacker-Skirmisher | -9/Mines Hacker-Skirmisher | -9/Exiles Hacker-Skirmisher | -8/Mines Hacker-Skirmisher | -8/Materials Hacker-Skirmisher | -7/Factory Hacker-Skirmisher | -7/Waste Hacker-Skirmisher | -7/Factory Hacker-Gunner | -7/Lower Caves Hacker-Gunner | -7/Data Miner Hacker-Tank | -6/Proximity Caves Hacker-Skirmisher | -6/Factory Hacker-Skirmisher | -6/Extension Resources | -11 -10 -10 -9 -9 -9 -8 -8 -7 -7 -7 -7 -7 -6 -6 -6 ----------- Run | Scr Mat Min Mat Min Exi Min Mat Fac Was Fac Low Dat Pro Fac Ext Matter Collected 6016 | 280 142 15 677 159 . 118 785 2163 156 444 80 . 215 433 349 Remotely 3199 | . . . 480 159 . . 340 2142 78 . . . . . . Salvage Created 11651 | . 191 77 1268 . . 61 1118 4296 263 326 416 . 543 1282 1810 Parts 717 | . 14 9 93 . . 5 73 289 5 26 11 . 26 78 88 Haulers Intercepted 9 | . . . 1 . . . 1 5 . . . . . 1 1 Recyclers Shooed 10 | . . . 1 . . . 1 4 . . . . . 4 . Parts Field Recycled . | . . . . . . . . . . . . . . . . Retrieved Matter . | . . . . . . . . . . . . . . . . Parts Self-Destructed . | . . . . . . . . . . . . . . . . Prevented . | . . . . . . . . . . . . . . . . Kills | -11 -10 -10 -9 -9 -9 -8 -8 -7 -7 -7 -7 -7 -6 -6 -6 ------- Run | Scr Mat Min Mat Min Exi Min Mat Fac Was Fac Low Dat Pro Fac Ext Combat Hostiles Destroyed 178 | . 6 2 24 1 . 5 20 68 1 10 . . 12 16 13 Guns 88 | . 6 2 15 . . 4 11 37 . . . . 2 6 5 Cannons 65 | . . . 7 . . 1 7 26 1 2 . . 4 9 8 AOE 23 | . . . 2 1 . . 2 5 . 7 . . 5 1 . Classes Destroyed 16 | . 3 1 8 . . . 1 1 1 . . . . . 1 Worker 39 | . . . 3 . . . 4 24 . 3 . . . 1 4 Builder 33 | . . . 1 . . . 3 13 . 3 . . . 5 8 Tunneler 5 | . . 1 1 . . . 1 1 . . . . . . 1 Hauler 9 | . . . 1 . . . 1 5 . . . . . 1 1 Recycler 25 | . . . 1 . . . 3 15 . . . . . 1 5 Operator 9 | . . . 2 . . . . 7 . . . . . . . Watcher 29 | . 3 . 5 . . . 5 8 . 1 . . . 4 3 Swarmer 47 | . 4 2 6 . . 5 6 12 . . . . 4 2 6 Grunt 62 | . 2 . 7 . . . 4 26 . 6 . . 4 9 4 Brawler 1 | . . . 1 . . . . . . . . . . . . Duelist 2 | . . . 1 . . . . 1 . . . . . . . Sentry 31 | . . . 9 . . . 8 9 . . . . 2 2 1 Hunter 14 | . . . . . . . 2 7 . 1 . . 2 1 1 Programmer 18 | . . . . . . . . 13 . 3 . . . 2 . Behemoth 1 | . . . . . . . . . . . . . . . 1 Compactor 1 | . . . . . . . . . 1 . . . . . . Best Kill Streak 24 | . 2 2 5 1 . 5 7 24 1 10 . . 7 4 13 Combat Bots Only 8 | . 2 2 5 1 . 5 3 5 1 8 . . 7 3 3 Max Kills in Single Turn 4 | . 1 1 2 1 . 1 4 4 1 4 . . 3 2 2 Gunslinging 1 | . . . 1 . . . . . . . . . . . . Exploded 3 | . . . 1 1 . . 2 1 . 2 . . 3 1 . Melee . | . . . . . . . . . . . . . . . . Uniques/NPCs Destroyed 1 | . . . . 1 . . . . . . . . . . . YI-UF0 (-9/Mines) Combat | -11 -10 -10 -9 -9 -9 -8 -8 -7 -7 -7 -7 -7 -6 -6 -6 -------- Run | Scr Mat Min Mat Min Exi Min Mat Fac Was Fac Low Dat Pro Fac Ext Damage Taken 6980 | . 52 12 398 64 . 54 637 2593 277 324 38 . 378 335 1818 Core 5523 | . 43 9 288 46 . 44 506 2043 255 258 29 . 296 269 1437 Absorbed by Shields 166 | . . . . . . . . 166 . . . . . . . Redirected to Core 4512 | . 19 9 234 46 . 33 421 1772 84 218 29 . 256 192 1199 Core Remaining (%) 99 | 100 . 96 . . . 100 100 . . . . . 100 . . Volleys Fired 598 | . 30 5 57 2 . 8 68 243 16 26 1 . 20 49 73 Largest 3 | . 2 2 3 3 . 3 3 3 3 3 3 . 3 3 3 Hottest 181 | . 40 63 147 107 . 152 152 178 178 137 137 . 151 181 181 Shots Fired 1604 | . 60 10 130 6 . 23 196 699 39 55 4 . 54 139 189 Gun 884 | . 60 10 98 4 . 7 123 434 9 . . . 18 49 72 Cannon 653 | . . . 28 2 . 16 73 265 30 26 2 . 21 73 117 Launcher 67 | . . . 4 . . . . . . 29 2 . 15 17 . Special . | . . . . . . . . . . . . . . . . Kinetic 741 | . 60 5 73 4 . 8 125 324 15 . . . 6 49 72 Thermal 332 | . . . 3 . . 8 8 146 15 26 2 . 21 45 58 Explosive 13 | . . . . . . . . . . 12 1 . . . . Electromagnetic 518 | . . 5 54 2 . 7 63 229 9 17 1 . 27 45 59 Robot Hit Streak 115 | . 19 2 30 35 . 39 28 115 21 38 40 . 51 23 31 Robot Miss Streak 3 | . 2 3 2 . . 1 3 2 1 3 . . 2 1 3 Penetration Max 1 | . . . . . . . . . . . . . . 1 1 Secondary Targets 3 | . 1 . 2 . . . . . . . . . . . . Max Gunslinging Chain 1 | . 1 . 1 . . . . . . . . . . . . Shots Hit Robots 1206 | . 44 4 100 5 . 13 144 529 36 44 2 . 44 102 139 Core Hits 521 | . 17 4 52 2 . 5 56 209 6 29 11 . 27 47 56 Critical Hits 15 | . . . 2 . . . 3 4 1 . . . . 1 4 Critical Kills 4 | . . . 1 . . . 1 . 1 . . . . . 1 Critical Parts Destroyed 10 | . . . 1 . . . 2 4 . . . . . 1 2 Melee Attacks 2 | . . . . . . . . . . 1 . . . 1 . Impact . | . . . . . . . . . . . . . . . . Slashing 2 | . . . . . . . . . . 1 . . . 1 . Piercing . | . . . . . . . . . . . . . . . . Sneak Attacks 1 | . . . . . . . . . . 1 . . . . . Combat Hostiles . | . . . . . . . . . . . . . . . . Follow-up Attacks . | . . . . . . . . . . . . . . . . Damage Inflicted 29381 | . 431 71 1642 113 . 183 2637 12149 796 2178 762 . 1357 2955 4107 Guns 11675 | . 424 58 1048 36 . 67 1388 6525 13 . . . 289 750 1077 Cannons 12118 | . . . 456 24 . 110 1005 4228 783 568 20 . 485 1736 2703 Explosions 5426 | . . . 128 53 . . 239 1388 . 1512 742 . 583 469 312 Melee 98 | . . . . . . . . . . 98 . . . . . Ramming 64 | . 7 13 10 . . 6 5 8 . . . . . . 15 Kinetic 9866 | . 424 35 878 37 . 49 1518 4586 403 . . . 109 750 1077 Thermal 8804 | . . . 124 53 . 61 341 3543 380 815 20 . 699 1156 1612 Explosive 1727 | . . . . . . . . 350 . 885 492 . . . . Electromagnetic 8822 | . . 23 630 23 . 67 773 3662 13 380 250 . 549 1049 1403 Impact . | . . . . . . . . . . . . . . . . Slashing 98 | . . . . . . . . . . 98 . . . . . Piercing . | . . . . . . . . . . . . . . . . Highest Corruption 14 | . . . 1 1 1 1 . 2 12 13 13 13 14 1 1 Average Corruption 2 | . . . 1 1 1 1 . 1 8 12 13 13 13 1 1 Corruption Purged 4 | . . . . . . . . 3 1 . . . . . . Effects 170 | . . . 1 4 8 6 . 25 12 38 15 4 40 9 8 Message Errors 47 | . . . 1 3 3 2 . 8 3 8 4 2 8 4 1 Matter Fused 19 | . . . . . . . . . 2 8 3 . 6 . . Heat Flow Errors 12 | . . . . . . . . 2 1 3 1 . 5 . . Energy Discharges 23 | . . . . 1 2 1 . 3 2 4 1 2 3 2 2 Parts Rejected 1 | . . . . . . . . . . 1 . . . . . Data Loss (minor) 16 | . . . . . 3 2 . 3 . 1 1 . 2 3 1 Data Loss (major) 3 | . . . . . . . . . . 2 . . 1 . . Misfires 3 | . . . . . . . . . . 1 1 . 1 . . Alerts 2 | . . . . . . . . . . . 1 . 1 . . Misdirections 12 | . . . . . . . . . 3 2 3 . 4 . . Targeting Errors 26 | . . . . . . . . 9 1 7 . . 6 . 3 Weapon Failures 6 | . . . . . . 1 . . . 1 . . 3 . 1 Overload Shots . | . . . . . . . . . . . . . . . . Overflow Damage 786 | . . . 15 . . . 3 344 . 201 83 . 11 50 79 Projectiles 239 | . . . 15 . . . 3 110 . 6 . . . 38 67 Explosions 469 | . . . . . . . . 234 . 117 83 . 11 12 12 Melee 78 | . . . . . . . . . . 78 . . . . . Knockbacks 35 | . . . . . . 1 7 27 . . . . . . . Impact 1 | . . . . . . . . 1 . . . . . . . Kinetic 34 | . . . . . . 1 7 26 . . . . . . . Secondary . | . . . . . . . . . . . . . . . . Self-Inflicted Damage 328 | . . . 26 . . . 8 160 . 23 38 . 24 38 11 Shots 21 | . . . 1 . . . 1 5 . 2 2 . 5 4 1 Rammed 18 | . 3 7 2 . . 1 1 2 . . . . . . 2 Targets Rammed 21 | . 3 7 3 . . 1 1 2 . . . . . . 4 Kicked 2 | . . . . . . . . . . . . . . . 2 Crushed 1 | . . . 1 . . . . . . . . . . . . Highest Temperature 468 | . 15 . 91 318 . 318 262 468 50 190 229 . 235 205 410 Average Temperature 98 | . 11 . 24 111 . 183 57 128 28 61 127 . 70 62 180 Received Heat Transfer 1692 | . 18 . 132 . . . 180 723 . 72 . . 75 168 324 Effects 23 | . . . . . . . . 16 . . . . 1 . 6 Shutdowns 8 | . . . . . . . . 6 . . . . . . 2 Energy Bleed 4 | . . . . . . . . 1 . . . . 1 . 2 Interference 3 | . . . . . . . . 3 . . . . . . . Matter Decay 1 | . . . . . . . . 1 . . . . . . . Short Circuit 2 | . . . . . . . . . . . . . . . 2 Damage (minor) 1 | . . . . . . . . 1 . . . . . . . Damage (major) 4 | . . . . . . . . 4 . . . . . . . Siege Activations . | . . . . . . . . . . . . . . . . Robots Corrupted 2 | . . . . . . . . . . . . . 1 1 . Combat Hostiles 1 | . . . . . . . . . . . . . 1 . . Parts Fried 21 | . . . 1 . . . 2 4 . . . . 4 5 5 Impact Corruptions . | . . . . . . . . . . . . . . . . Robots Melted 1 | . . . . . . . . . . 1 . . . . . Combat Hostiles 1 | . . . . . . . . . . 1 . . . . . Parts Melted 11 | . . . . . . . 1 3 . 3 . . 1 2 1 Heat Transferred 10810 | . . . 150 50 . 111 485 4376 518 1088 37 . 869 1358 1768 Parts Sabotaged . | . . . . . . . . . . . . . . . . Parts Stolen . | . . . . . . . . . . . . . . . . Parts Stripped . | . . . . . . . . . . . . . . . . Power Chain Reactions 31 | . . . 4 1 . . 4 10 . 1 . . 3 4 4 Missiles Intercepted . | . . . . . . . . . . . . . . . . Alert | -11 -10 -10 -9 -9 -9 -8 -8 -7 -7 -7 -7 -7 -6 -6 -6 ------- Run | Scr Mat Min Mat Min Exi Min Mat Fac Was Fac Low Dat Pro Fac Ext Peak Influence 707 | . 115 55 224 8 . 124 226 707 35 406 . . . 282 381 Initial 96 | . . . . 8 . . . . . 18 . . . 96 . Average 77 | . 28 13 68 2 . 33 74 107 5 109 . . . 75 150 Maximum Alert Level 3 | . . . 1 . . . 1 3 . 2 . . . 1 1 Low Security (%) 88 | 100 100 100 91 100 . 100 91 80 100 89 . . . 90 65 Level 1 8 | . . . 8 . . . 8 11 . 7 . . . 9 34 Level 2 3 | . . . . . . . . 8 . 2 . . . . . Level 3 . | . . . . . . . . . . . . . . . . Level 4 . | . . . . . . . . . . . . . . . . Level 5 . | . . . . . . . . . . . . . . . . High Security . | . . . . . . . . . . . . . . . . Max Security . | . . . . . . . . . . . . . . . . Squads Dispatched 42 | . . . 2 . . . 1 23 . 8 . . . 5 3 Investigation 5 | . . . 1 . . . . 3 . 1 . . . . . Extermination 15 | . . . . . . . . 11 . 2 . . . 2 . Reinforcement 16 | . . . 1 . . . . 7 . 2 . . . 3 3 Assault . | . . . . . . . . . . . . . . . . Garrison 6 | . . . . . . . 1 2 . 3 . . . . . Intercept . | . . . . . . . . . . . . . . . . Construction Impeded 10 | . . . . . . . . 3 . 1 . . . 3 3 Haulers Reinforced 2 | . . . . . . . . 1 . 1 . . . . . Stealth | -11 -10 -10 -9 -9 -9 -8 -8 -7 -7 -7 -7 -7 -6 -6 -6 --------- Run | Scr Mat Min Mat Min Exi Min Mat Fac Was Fac Low Dat Pro Fac Ext Distress Signals 10 | . . . 2 . . . 4 1 . 2 . . . . 1 Communications Jammed . | . . . . . . . . . . . . . . . . Distress Signals . | . . . . . . . . . . . . . . . . Times Spotted 266 | . 12 2 28 1 . 5 26 88 9 14 . . 22 19 40 Peak Tracking Total 9 | . 2 2 4 1 . 2 3 4 4 3 . . 7 2 9 Tactical Retreats 25 | . . . . . . . . 5 2 1 . . 5 1 11 Traps | -11 -10 -10 -9 -9 -9 -8 -8 -7 -7 -7 -7 -7 -6 -6 -6 ------- Run | Scr Mat Min Mat Min Exi Min Mat Fac Was Fac Low Dat Pro Fac Ext Traps Triggered 14 | . . . 2 . . . 1 9 . 1 . . . 1 . Indirectly . | . . . . . . . . . . . . . . . . Trap Hack Attempts . | . . . . . . . . . . . . . . . . Triggered . | . . . . . . . . . . . . . . . . Disarmed 6 | . . . . . . . . 6 . . . . . . . Reprogrammed 12 | . 6 . 3 . . . 1 2 . . . . . . . Reused . | . . . . . . . . . . . . . . . . Traps Extracted . | . . . . . . . . . . . . . . . . Installed . | . . . . . . . . . . . . . . . . Triggered 2 | . . . . . . . . 2 . . . . . . . Machines | -11 -10 -10 -9 -9 -9 -8 -8 -7 -7 -7 -7 -7 -6 -6 -6 ---------- Run | Scr Mat Min Mat Min Exi Min Mat Fac Was Fac Low Dat Pro Fac Ext Machines Disabled 39 | . . . 3 . . . 3 21 . 6 . . 4 1 1 Max in Single Turn 8 | . . . 2 . . . 1 8 . 4 . . 2 1 1 Garrison Access 5 | . . . . . . . 1 2 . . . . . 2 . Machines Sabotaged . | . . . . . . . . . . . . . . . . Garrisons Compromised . | . . . . . . . . . . . . . . . . Overloaded Fab Kills . | . . . . . . . . . . . . . . . . Fab Network Shutdowns 1 | . . . . . . . . 1 . . . . . . . Hacking | -11 -10 -10 -9 -9 -9 -8 -8 -7 -7 -7 -7 -7 -6 -6 -6 --------- Run | Scr Mat Min Mat Min Exi Min Mat Fac Was Fac Low Dat Pro Fac Ext Machines Accessed 74 | . 7 . 12 1 4 1 14 23 . 1 . 4 . 7 . Terminals 41 | . 7 . 8 1 . 1 10 12 . . . . . 2 . Fabricators 4 | . . . . . . . . 3 . 1 . . . . . Repair Stations 11 | . . . 2 . . . 2 5 . . . . . 2 . Recycling Units . | . . . . . . . . . . . . . . . . Scanalyzers 5 | . . . 2 . . . 1 1 . . . . . 1 . Garrison Access 5 | . . . . . . . 1 2 . . . . . 2 . Total Hacks 228 | . 15 . 35 1 49 3 31 52 . 4 . 26 . 12 . Successful 201 | . 14 . 31 1 49 3 29 35 . 3 . 26 . 10 . Failed 27 | . 1 . 4 . . . 2 17 . 1 . . . 2 . Catastrophic 2 | . . . . . . . . 2 . . . . . . . Database Lockouts . | . . . . . . . . . . . . . . . . Manual 1 | . . . . . 1 . . . . . . . . . . Terminals 86 | . 15 . 15 1 . 3 23 26 . . . . . 3 . Fabricators 10 | . . . . . . . . 6 . 4 . . . . . Repair Stations 27 | . . . 4 . . . 5 14 . . . . . 4 . Recycling Units . | . . . . . . . . . . . . . . . . Scanalyzers 24 | . . . 16 . . . 2 3 . . . . . 3 . Garrison Access 6 | . . . . . . . 1 3 . . . . . 2 . Terminal Hacks 142 | . 14 . 11 1 49 3 21 15 . . . 26 . 2 . Record 71 | . 2 . 1 1 49 2 3 2 . . . 11 . . . Part Schematic 9 | . . . . . . . . 2 . . . 7 . . . Robot Schematic 5 | . . . . . . . . . . . . 5 . . . Robot Analysis 2 | . 1 . . . . . 1 . . . . . . . . Prototype ID Bank 4 | . . . . . . . 1 . . . . 3 . . . Level Access Points 1 | . . . . . . . . 1 . . . . . . . Emergency Access Points 4 | . . . 1 . . . 1 2 . . . . . . . Machine Index 1 | . 1 . . . . . . . . . . . . . . Alert Level 1 | . . . . . . . 1 . . . . . . . . Locate Traps 9 | . 2 . 5 . . . 2 . . . . . . . . Disarm Traps 1 | . . . . . . . . 1 . . . . . . . Reprogram Traps 5 | . 1 . 1 . . . 2 1 . . . . . . . Dispatch Records 1 | . . . . . . . 1 . . . . . . . . Maintenance Status 2 | . 1 . . . . . 1 . . . . . . . . Security Status 2 | . 1 . . . . . 1 . . . . . . . . Surveillance Status 3 | . . . 2 . . . . 1 . . . . . . . Patrol Status 1 | . . . . . . . 1 . . . . . . . . Transport Status 1 | . 1 . . . . . . . . . . . . . . Investigation Status 1 | . . . . . . . . 1 . . . . . . . Extermination Status 1 | . . . . . . . . 1 . . . . . . . Recall Assault 1 | . . . . . . . 1 . . . . . . . . Hauler Manifests 2 | . . . . . . . 1 1 . . . . . . . Registered Components 1 | . 1 . . . . . . . . . . . . . . Registered Prototypes 3 | . . . 1 . . . 1 . . . . . . 1 . Zone Layout 10 | . 3 . . . . 1 3 2 . . . . . 1 . Fabricator Hacks 8 | . . . . . . . . 5 . 3 . . . . . Network Status 1 | . . . . . . . . 1 . . . . . . . Load Schematic 4 | . . . . . . . . 2 . 2 . . . . . Build 3 | . . . . . . . . 2 . 1 . . . . . Repair Station Hacks 24 | . . . 4 . . . 5 11 . . . . . 4 . Scan Component 13 | . . . 2 . . . 3 6 . . . . . 2 . Repair 11 | . . . 2 . . . 2 5 . . . . . 2 . Recycling Unit Hacks . | . . . . . . . . . . . . . . . . Scanalyzer 22 | . . . 16 . . . 2 2 . . . . . 2 . Insert Component 11 | . . . 8 . . . 1 1 . . . . . 1 . Analyze 11 | . . . 8 . . . 1 1 . . . . . 1 . Garrison Access Hacks 5 | . . . . . . . 1 2 . . . . . 2 . Seal Access 5 | . . . . . . . 1 2 . . . . . 2 . Unauthorized Hacks . | . . . . . . . . . . . . . . . . Terminals . | . . . . . . . . . . . . . . . . Fabricators . | . . . . . . . . . . . . . . . . Repair Stations . | . . . . . . . . . . . . . . . . Recycling Units . | . . . . . . . . . . . . . . . . Scanalyzers . | . . . . . . . . . . . . . . . . Garrison Access . | . . . . . . . . . . . . . . . . Data Cores Recovered 6 | . . . 2 . . . . 4 . . . . . . . Used 2 | . . . 1 . . . . 1 . . . . . . . Hacking Detections 41 | . 4 . 7 . . . 6 19 . 1 . . . 4 . Full Trace Events 4 | . . . 1 . . . . 2 . 1 . . . . . Feedback Events . | . . . . . . . . . . . . . . . . Feedback Blocked . | . . . . . . . . . . . . . . . . Robot Schematics Acquired 5 | . . . . . . . . . . . . 5 . . . Robots Built . | . . . . . . . . . . . . . . . . Matter . | . . . . . . . . . . . . . . . . Time . | . . . . . . . . . . . . . . . . Total Robot Build Rating . | . . . . . . . . . . . . . . . . Part Schematics Acquired 19 | . . . 7 . . . 1 3 . . . 7 . 1 . Parts Built 3 | . . . . . . . . 2 . 1 . . . . . Matter 438 | . . . . . . . . 314 . 124 . . . . . Time 109 | . . . . . . . . 78 . 31 . . . . . Total Part Build Rating 9 | . . . . . . . . 7 . 2 . . . . . Parts Repaired 11 | . . . 2 . . . 2 5 . . . . . 2 . Time 285 | . . . 52 . . . 52 124 . . . . . 57 . Parts Recycled . | . . . . . . . . . . . . . . . . Recycled Matter . | . . . . . . . . . . . . . . . . Retrieved Matter . | . . . . . . . . . . . . . . . . Retrieved Components . | . . . . . . . . . . . . . . . . Parts Scanalyzed 10 | . . . 7 . . . 1 1 . . . . . 1 . Part Schematics Acquired 10 | . . . 7 . . . 1 1 . . . . . 1 . Parts Damaged . | . . . . . . . . . . . . . . . . Bothacking | -11 -10 -10 -9 -9 -9 -8 -8 -7 -7 -7 -7 -7 -6 -6 -6 ------------ Run | Scr Mat Min Mat Min Exi Min Mat Fac Was Fac Low Dat Pro Fac Ext Used RIF Installer . | . . . . . . . . . . . . . . . . Robots Hacked . | . . . . . . . . . . . . . . . . Non-combat . | . . . . . . . . . . . . . . . . Combat . | . . . . . . . . . . . . . . . . Robot Hacks Applied . | . . . . . . . . . . . . . . . . Relay Couplers Released 1 | . . . . . . . . 1 . . . . . . . Programmers 1 | . . . . . . . . 1 . . . . . . . Robots Rewired . | . . . . . . . . . . . . . . . . Allies Hacked . | . . . . . . . . . . . . . . . . Hacks Repelled . | . . . . . . . . . . . . . . . . Allies | -11 -10 -10 -9 -9 -9 -8 -8 -7 -7 -7 -7 -7 -6 -6 -6 -------- Run | Scr Mat Min Mat Min Exi Min Mat Fac Was Fac Low Dat Pro Fac Ext Total Allies 2 | . . . . 1 . . . . . . . . 1 . . Largest Group 1 | . . . . 1 . . . . . . . . 1 . . Highest-Rated Group 94 | . . . . 31 . . . . . . . . 94 . . Highest-Rated Ally 94 | . . . . 31 . . . . . . . . 94 . . Total Orders . | . . . . . . . . . . . . . . . . Ally Attacks 12 | . . . . . . . . . . . . . 12 . . Total Damage 418 | . . . . . . . . . . . . . 418 . . Kills 3 | . . . . . . . . . . . . . 3 . . Allies Corrupted . | . . . . . . . . . . . . . . . . Allies Melted . | . . . . . . . . . . . . . . . . Intel | -11 -10 -10 -9 -9 -9 -8 -8 -7 -7 -7 -7 -7 -6 -6 -6 ------- Run | Scr Mat Min Mat Min Exi Min Mat Fac Was Fac Low Dat Pro Fac Ext Robot Analysis Total 2 | . 1 . . . . . 1 . . . . . . . . Derelict Logs Recovered 3 | . . . . 2 . . . . . . . . 1 . . Drone Launches . | . . . . . . . . . . . . . . . . Drone Recoveries . | . . . . . . . . . . . . . . . . Exploration | -11 -10 -10 -9 -9 -9 -8 -8 -7 -7 -7 -7 -7 -6 -6 -6 ------------- Run | Scr Mat Min Mat Min Exi Min Mat Fac Was Fac Low Dat Pro Fac Ext Turns Passed 24719 | 117 1746 876 2236 1263 1377 1077 2464 8416 293 688 331 107 679 2109 940 Spaces Moved 13730 | 48 1018 524 1189 769 791 644 1245 4132 225 429 258 86 445 1375 552 Core 167 | 8 . . . . . . . . 147 12 . . . . . Treads 10430 | 40 1018 524 1189 769 791 644 1245 4132 78 . . . . . . Legs 3133 | . . . . . . . . . . 417 258 86 445 1375 552 Wheels . | . . . . . . . . . . . . . . . . Hover . | . . . . . . . . . . . . . . . . Flight . | . . . . . . . . . . . . . . . . Fastest Speed 50 | 50 160 160 160 160 160 160 160 163 50 50 125 125 125 125 125 Average Speed 152 | 141 160 160 160 160 160 160 160 164 99 122 125 125 125 125 125 Slowest Speed 200 | 160 160 160 160 160 160 160 163 170 200 125 125 125 125 125 126 Overloaded Moves . | . . . . . . . . . . . . . . . . Propulsion Burnouts . | . . . . . . . . . . . . . . . . Robots Hopped . | . . . . . . . . . . . . . . . . Cave-ins Triggered 2 | . . . . . . . 1 1 . . . . . . . Time Travels 1 | . . . . . 1 . . . . . . . . . . Exploration Rate (%) 68 | 4 97 99 84 99 94 98 94 94 85 11 42 73 69 33 27 Regions Visited 15 Branch Regions 8 Pre-discovered Areas 2 | . . . . . 1 . . . . . . 1 . . . Known Exits Taken 12 | 1 1 1 1 1 1 1 1 . . 1 . 1 1 1 . Unknown Exits Taken 1 | . . . . . . . . . . . 1 . . . . Scrap Searched 8 | . . 1 . 1 . 2 . . . . 2 . 2 . . Spaces Dug 3 | . . . . . . . 2 . . . . . . 1 . Terrain Destroyed 379 | . . . 16 1 . 4 30 141 . 84 14 . 17 40 32 Melee 1 | . . . . . . . . . . . . . . 1 . Projectile 84 | . . . 3 1 . 4 8 40 . . . . . 10 18 AOE 294 | . . . 13 . . . 22 101 . 84 14 . 17 29 14 Terrain Rammed . | . . . . . . . . . . . . . . . . Walls Destroyed . | . . . . . . . . . . . . . . . . Machines Disabled . | . . . . . . . . . . . . . . . . Actions | -11 -10 -10 -9 -9 -9 -8 -8 -7 -7 -7 -7 -7 -6 -6 -6 --------- Run | Scr Mat Min Mat Min Exi Min Mat Fac Was Fac Low Dat Pro Fac Ext Total 16243 | 96 1081 548 1401 796 904 672 1557 5205 260 542 262 85 525 1658 651 Wait 1319 | 34 17 11 90 17 109 16 158 629 . 49 . . . 185 4 Move 13716 | 47 1017 523 1188 768 790 643 1244 4132 224 428 257 85 444 1374 552 Hop . | . . . . . . . . . . . . . . . . Pick Up 107 | 7 4 1 8 2 1 . 17 27 6 16 1 . 8 8 1 Fast Attach 30 | 3 2 . 4 . 1 . 1 8 2 . . . 2 7 . Attach 56 | 5 1 . 1 1 . . 4 12 11 12 1 . 4 1 3 Detach 3 | . . . . . . . . 2 . . . . 1 . . Swap 94 | . . . 24 4 1 . 23 21 . 2 2 . 3 8 6 Drop 95 | . 5 1 11 2 2 . 16 31 1 1 . . 9 12 4 Fire 598 | . 30 5 57 2 . 8 68 243 16 26 1 . 20 49 73 Melee 2 | . . . . . . . . . . 1 . . . 1 . Ram . | . . . . . . . . . . . . . . . . Kick 4 | . . . . . . . . . . . . . . . 4 Crush 17 | . 3 7 3 . . 1 1 2 . . . . . . . Escape Stasis . | . . . . . . . . . . . . . . . . Rewire . | . . . . . . . . . . . . . . . . Trap . | . . . . . . . . . . . . . . . . Miscellaneous 202 | . 2 . 15 . . 4 25 98 . 7 . . 34 13 4 Route ------- -11/Scrapyard -10/Materials (discovered 5 exits: *Mat x3 / *Min x2) -10/Mines (discovered 2 exits: *Mat x2) -9/Materials (discovered 4 exits: *Mat x3 / *Min) -9/Mines (discovered 3 exits: *Mat x2 / *Exi) -9/Exiles (discovered 2 exits: *Min x2) -8/Mines (discovered 2 exits: *Mat x2) -8/Materials (discovered 3 exits: *Fac x3) -7/Factory (discovered 8 exits: *Fac x4 / *Sto x2 / *Low x2) -7/Waste -7/Factory -7/Lower Caves -7/Data Miner -6/Proximity Caves -6/Factory (discovered 3 exits: *Fac / *Low / *Ext) -6/Extension History --------- Turn | Location | Event 1 | -11/Scrapyard | Upgraded with Power slot (x1) 1 | -11/Scrapyard | Upgraded with Propulsion slot (x2) 1 | -11/Scrapyard | Upgraded with Utility slot (x1) 1 | -11/Scrapyard | Upgraded with Weapon slot (x1) 2 | -11/Scrapyard | Identified exit to Materials 2 | -11/Scrapyard | Discovered exit to Materials (range 16) 118 | -11/Scrapyard | Entered Materials 204 | -10/Materials | Identified exit to Mines 204 | -10/Materials | Discovered exit to Mines (range 14) 315 | -10/Materials | Build established: Hacker-Mutant 337 | -10/Materials | Discovered exit to Mines (range 19) 927 | -10/Materials | Identified exit to Materials 927 | -10/Materials | Discovered exit to Materials (range 17) 927 | -10/Materials | Discovered exit to Materials (range 18) 1386 | -10/Materials | Discovered exit to Materials (range 13) 1864 | -10/Materials | Entered Mines 2130 | -10/Mines | Discovered exit to Materials (range 12) 2455 | -10/Mines | Reached level 2 2458 | -10/Mines | Upgraded with Utility slot (x1) 2505 | -10/Mines | Received a Rocket Launcher from a helpful Derelict 2721 | -10/Mines | Discovered exit to Materials (range 12) 2740 | -10/Mines | Entered Materials 2742 | -9/Materials | Reached level 3 2742 | -9/Materials | Upgraded with Utility slot (x1) 2783 | -9/Materials | Reached level 4 2949 | -9/Materials | Repaired Lgt. Treads 3160 | -9/Materials | Identified exit to Mines 3160 | -9/Materials | Discovered exit to Mines (range 5) 3228 | -9/Materials | Build established: Hacker-Skirmisher 3381 | -9/Materials | Identified exit to Materials 3381 | -9/Materials | Discovered exit to Materials (range 5) 3415 | -9/Materials | Reached level 5 3462 | -9/Materials | Upgraded with Weapon slot (x1) 3581 | -9/Materials | Repaired Propulsion Shielding 3916 | -9/Materials | Discovered exit to Materials (range 8) 4371 | -9/Materials | Discovered exit to Materials (range 10) 4420 | -9/Materials | Reached level 6 4482 | -9/Materials | Upgraded with Utility slot (x1) 4976 | -9/Materials | Entered Mines 4979 | -9/Mines | Received a Mining Laser from a helpful Derelict 5032 | -9/Mines | Deemed a non-threat by the Exiles lab entrance 5032 | -9/Mines | Identified exit to Exiles 5032 | -9/Mines | Discovered exit to Exiles (range 5) 5057 | -9/Mines | YI-UF0 nonchalantly dropped a Grenade Launcher on the ground 5165 | -9/Mines | Learned 8 Materials zone layouts 5381 | -9/Mines | Found a damaged Exp. Sensor Array with a note attached 5385 | -9/Mines | Found Prototype Device 5386 | -9/Mines | Identified Exp. Sensor Array 5419 | -9/Mines | Destroyed YI-UF0 5576 | -9/Mines | Discovered exit to Materials (range 14) 5621 | -9/Mines | A weapon hastily lodged in a ceiling crevice suddenly fell to the ground 5724 | -9/Mines | Discovered exit to Materials (range 6) 6239 | -9/Mines | Entered Exiles 6267 | -9/Exiles | Identified exit to Mines 6267 | -9/Exiles | Discovered exit to Mines (range 15) 6300 | -9/Exiles | Met 8R-AWN 6326 | -9/Exiles | Met EX-HEX 6375 | -9/Exiles | Met EX-BIN 6399 | -9/Exiles | Aligned with FarCom system 6401 | -9/Exiles | Given EX-Vault access code 6438 | -9/Exiles | Opened EX-Vault 6527 | -9/Exiles | Warned to stay clear of 0b10 Research branches 6635 | -9/Exiles | Met EX-DEC 6652 | -9/Exiles | Learned location of Zion (-6) 6725 | -9/Exiles | Discovered exit to Mines (range 15) 6851 | -9/Exiles | Visited The Gauntlet 7215 | -9/Exiles | Found Prototype Device 7216 | -9/Exiles | Identified Chronowheel 7216 | -9/Exiles | Activated Chronowheel 7216 | -9/Exiles | Spacetime reconverged on an earlier point 7218 | -9/Exiles | Found Prototype Storage 7218 | -9/Exiles | Identified Superbattery 7616 | -9/Exiles | Left Exiles lab with Superbattery 7616 | -9/Exiles | Entered Mines 7618 | -8/Mines | Reached level 7 7664 | -8/Mines | Discovered exit to Materials (range 17) 8389 | -8/Mines | Discovered exit to Materials (range 12) 8693 | -8/Mines | Entered Materials 8694 | -8/Materials | Identified exit to Factory 8695 | -8/Materials | Reached level 8 8974 | -8/Materials | Reached level 9 9064 | -8/Materials | Repaired EM Pulse Gun 9319 | -8/Materials | Crushed by falling debris 9918 | -8/Materials | Garrison activated, responded to threat 9959 | -8/Materials | Reached level 10 9962 | -8/Materials | Upgraded with Utility slot (x1) 10078 | -8/Materials | Repaired EM Pulse Gun 11157 | -8/Materials | Entered Factory 11159 | -7/Factory | Reached level 11 12496 | -7/Factory | Reached level 12 12600 | -7/Factory | Identified exit to Factory 12683 | -7/Factory | Repaired Imp. Heat Sink 13079 | -7/Factory | Garrison activated, responded to threat 13206 | -7/Factory | Reached level 13 14590 | -7/Factory | Reached level 14 14591 | -7/Factory | Upgraded with Utility slot (x1) 14604 | -7/Factory | Crushed by falling debris 15073 | -7/Factory | Repaired Arm. Treads 15210 | -7/Factory | Fabricated Imp. Hacking Suite (x1) 15241 | -7/Factory | Local fabrication network quarantined 15243 | -7/Factory | Fabricated EMP Blaster (x1) 15290 | -7/Factory | Identified exit to Storage 15290 | -7/Factory | Discovered exit to Storage (range 18) 15518 | -7/Factory | Reached level 15 15526 | -7/Factory | Identified exit to Lower Caves 15526 | -7/Factory | Discovered exit to Lower Caves (range 6) 15627 | -7/Factory | Repaired Shock Rifle 15668 | -7/Factory | Discovered exit to Storage (range 19) 17123 | -7/Factory | Repaired Imp. Treads 17235 | -7/Factory | Upgraded with Propulsion slot (x1) 18072 | -7/Factory | Repaired Hpw. Tractor Beam 18209 | -7/Factory | Discovered exit to Lower Caves (range 16) 18850 | -7/Factory | Reached level 16 19573 | -7/Factory | Sucked down chute 19573 | -7/Factory | Entered Waste 19588 | -7/Waste | EMP discharged 19614 | -7/Waste | Spotted C-40 Crusher 19622 | -7/Waste | Destroyed C-40 Crusher 19664 | -7/Waste | Spotted C-40 Crusher 19688 | -7/Waste | EMP discharged 19697 | -7/Waste | Crushed by Compactor (1 part destroyed, 2 dropped) 19700 | -7/Waste | Crushed by Compactor (1 part destroyed, 2 dropped) 19703 | -7/Waste | Crushed by Compactor (1 part destroyed, 2 dropped) 19706 | -7/Waste | Crushed by Compactor (1 part destroyed, 1 dropped) 19709 | -7/Waste | Crushed by Compactor (1 part destroyed, 1 dropped) 19712 | -7/Waste | Crushed by Compactor (1 part destroyed, 1 dropped) 19736 | -7/Waste | Crushed by Compactor (1 part destroyed, 2 dropped) 19737 | -7/Waste | Spotted C-40 Crusher 19767 | -7/Waste | Lost 7 parts (5u2w) 19786 | -7/Waste | Crushed by Compactor (1 part destroyed, 1 dropped) 19788 | -7/Waste | EMP discharged 19788 | -7/Waste | System corruption reached 10% 19789 | -7/Waste | Crushed by Compactor (1 part destroyed, 2 dropped) 19799 | -7/Waste | Spotted C-40 Crusher 19800 | -7/Waste | Spotted C-40 Crusher 19819 | -7/Waste | Spotted C-40 Crusher 19850 | -7/Waste | Crushed by Compactor (1 part destroyed, 1 dropped) 19860 | -7/Waste | Identified exit to Factory 19860 | -7/Waste | Discovered exit to Factory (range 13) 19866 | -7/Waste | Entered Factory 19995 | -7/Factory | Fabricated EMP Blaster (x1) 20145 | -7/Factory | Discovered exit to Lower Caves (range 5) 20229 | -7/Factory | Garrison activated, responded to threat 20273 | -7/Factory | Destroyed 8 combat bots 20554 | -7/Factory | Entered Lower Caves 20873 | -7/Lower Caves | A Derelict revealed a hidden shortcut to meet someone special 20885 | -7/Lower Caves | Entered Data Miner 20885 | -7/Data Miner | Identified exit to Proximity Caves 20885 | -7/Data Miner | Discovered exit to Proximity Caves (range 6) 20905 | -7/Data Miner | Met Data Miner 20937 | -7/Data Miner | Learned location of Section 7 (-2) 20937 | -7/Data Miner | Acquired the access code to Warlord's prototype stash 20960 | -7/Data Miner | Received God Mode back door access code from Data Miner 20992 | -7/Data Miner | Entered Proximity Caves 20994 | -6/Proximity Caves | Reached level 17 21010 | -6/Proximity Caves | Build established: Hacker-Gunner 21068 | -6/Proximity Caves | Escorted by Enhanced Grunt 21091 | -6/Proximity Caves | Attracted the attention of an 0b10 checkpoint 21125 | -6/Proximity Caves | Reached level 18 21195 | -6/Proximity Caves | Found Prototype Device 21212 | -6/Proximity Caves | Identified Exp. Thermal Shield 21403 | -6/Proximity Caves | Learned Factory stockpile data 21495 | -6/Proximity Caves | Build established: Hacker-Tank 21591 | -6/Proximity Caves | Destroyed 7 combat bots 21656 | -6/Proximity Caves | Discovered exit to Factory (range 8) 21671 | -6/Proximity Caves | Entered Factory 21767 | -6/Factory | Identified exit to Extension 21767 | -6/Factory | Discovered exit to Extension (range 10) 21846 | -6/Factory | Reached level 19 21987 | -6/Factory | Build established: Hacker-Skirmisher 22255 | -6/Factory | Identified exit to Factory 22255 | -6/Factory | Discovered exit to Factory (range 14) 22556 | -6/Factory | Identified exit to Lower Caves 22556 | -6/Factory | Discovered exit to Lower Caves (range 3) 22801 | -6/Factory | Repaired Hcp. Battery 23352 | -6/Factory | Repaired Gauss Rifle 23780 | -6/Factory | Entered Extension 23980 | -6/Extension | Disrupted transfer network 24040 | -6/Extension | Spotted B-75 Beast 24050 | -6/Extension | Spotted B-75 Beast 24083 | -6/Extension | Destroyed B-75 Beast 24091 | -6/Extension | Core integrity fell below 50% 24283 | -6/Extension | Reached level 20 24357 | -6/Extension | Core integrity fell below 20% 24552 | -6/Extension | Disrupted transfer network 24720 | -6/Extension | Destroyed by H-66 Slayer with Gauss Rifle Last Messages --------------- 24590_ Terrain Scanner fried. 24590_ U-05 Engineer destroyed. 24593_ Acquired 12 matter. 24597_ Acquired 2 matter. 24602_ Acquired 18 matter. 24608_ Acquired 20 matter. 24628_ System corrupted: Energy discharge (-329). 24698_ Slug penetrates M-13 Machinist. 24704_ Slug penetrates C-30 ARC. 24705_ C-30 ARC bursts open, deploying its payload. 24705_ H-66 Slayer unfolds itself. 24705_ Penetrated by Slug. 24707_ Slug penetrates H-66 Slayer. 24708_ Penetrated by Slug. 24710_ Slug penetrates H-66 Slayer. 24715_ Slug penetrates Wall. 24717_ Slug penetrates H-66 Slayer. 24717_ Targeting Computer fried. 24717_ H-66 Slayer destroyed. 24720_ Penetrated by Slug. Map ----- +----------------------------------------------------+ | ?????????????????????????????????????????????????? | | ?????????????????????????????????????????????????? | | ?????????????????????????????????????????????????? | | ?????????????????????????????????????????????????? | | ?????????????????????????????????????????????????? | | ?????????????????????????????????????????????????? | | ???????????????????????????Y?????????????????????? | | ?????????????????????????????????????????????????? | | ?????????????????????????????????????????????????? | | ?????????????????????????????????????????????????? | | ?????????????????????????????????????????????????? | | ?????????????????????????????????????????????????? | | ?????????????????????????????????????????????????? | | ?????????????????????????????????????????????????? | | ?????????????????????????????????????????????????? | | ?????????????????????????????????????????????????? | | ?????????????????????????????????????????????????? | | ?????????????????????????????????????????????????? | | ?????????????????????????????????????????????????? | | ?????????????????????????????????????????????????? | | ?????????????????????????????????????????????????? | | ????????????????????????????????????????????##??? | | ################################################## | | =% % %= | | h% R | | @ [=!*% R | | = %=%! % | | % =%*= g g | | ################################################## | | ???????????????????????????????????????????????##? | | ?????????????????????????????????????????????????? | | ?????????????????????????????????????????????????? | | ?????????????????????????????????????????????????? | | ?????????????????????????????????????????????????? | | ?????????????????????????????????????????????????? | | ?????????????????????????????????????????????????? | | | | | | | | | | | | | | | | | | | | | | | | | | | | | +----------------------------------------------------+ Best States ------------- Heat Dissipation 83 Energy Generation 47 Energy Capacity 3100 Matter Stores 650 Matter Capacity 650 Sight Range 25 Robot Scan Range 42 Terrain Scan Density 110 ECM Strength 2 Resistance: KI 40 Resistance: TH 40 Resistance: EX 40 Resistance: EM 35 Resistance: I 35 Resistance: S 35 Resistance: P 35 Propulsion Shielding 33 Reclamation Efficiency 15 Phase Shifting 5 Evasion (%) 50 Recoil Reduction 4 Energy Filtering 30 Particle Charging 15 Kinecelleration 30 Offensive Hacking 52 Item Schematics ----------------- Lgt. Treads | -9/Materials | Scanalyzed Hvy. Assault Rifle | -9/Materials | Scanalyzed Beam Rifle | -9/Materials | Scanalyzed Propulsion Shielding | -9/Materials | Scanalyzed EMP Blaster | -9/Materials | Scanalyzed Assault Cannon | -9/Materials | Scanalyzed Imp. Sensor Array | -9/Materials | Scanalyzed Cooling System | -8/Materials | Scanalyzed Imp. Hardlight Generator | -7/Factory | Hacked Imp. ECM Suite | -7/Factory | Scanalyzed Arm. Medium Treads | -7/Factory | Hacked Combat Drone Bay | -7/Data Miner | Free Lgt. Regenerative Plating | -7/Data Miner | Free Exp. Flexi-carbon Leg | -7/Data Miner | Free Triangulator | -7/Data Miner | Free Exp. Terrain Scan Processor | -7/Data Miner | Free Exp. Transmission Jammer | -7/Data Miner | Free Plasma Sword | -7/Data Miner | Free Mic. Fission Core | -6/Factory | Scanalyzed Robot Schematics ------------------ S-27 Virus | -7/Data Miner | Free G-50 Soldier | -7/Data Miner | Free X-72 Disruptor | -7/Data Miner | Free H-66 Slayer | -7/Data Miner | Free I-36 Angel | -7/Data Miner | Free Fabricated ------------ Imp. Hacking Suite | x1 | -7/Factory | Preloaded EMP Blaster | x1 | -7/Factory EMP Blaster | x1 | -7/Factory Alien Tech Used ----------------- None Achievements -------------- None Challenges ------------ None RPGLIKE | -11 -10 -10 -9 -9 -9 -8 -8 -7 -7 -7 -7 -7 -6 -6 -6 --------- Run | Scr Mat Min Mat Min Exi Min Mat Fac Was Fac Low Dat Pro Fac Ext Levels Raised 19 | . . 1 4 . . 1 3 6 . . . . 2 1 1 XP Earned 34896 | 6000 895 750 6031 500 350 1249 4495 8547 67 481 170 220 2405 1526 1210 XP Spent 32750 | 5975 . 1495 5825 . . 1700 4400 7605 . . . . 3750 2000 . Upgrades 78 | 21 . 4 9 . . 6 12 20 . . . . 5 1 . Power Slot 1 | 1 . . . . . . . . . . . . . . . Propulsion Slot 3 | 2 . . . . . . . 1 . . . . . . . Utility Slot 6 | 1 . 1 2 . . . 1 1 . . . . . . . Weapon Slot 2 | 1 . . 1 . . . . . . . . . . . . Core Integrity 15 | 1 . . . . . 4 10 . . . . . . . . Heat Dissipation 6 | 1 . 1 . . . . . 4 . . . . . . . Energy Generation 2 | . . . 1 . . . . 1 . . . . . . . Energy Storage 6 | 4 . 2 . . . . . . . . . . . . . Matter Storage 3 | . . . 2 . . 1 . . . . . . . . . Mass Support 1 | . . . . . . . . 1 . . . . . . . Inventory Capacity 8 | 2 . . 2 . . 1 1 . . . . . 1 1 . Sight Range 3 | 3 . . . . . . . . . . . . . . . Sensor Range 11 | 5 . . . . . . . 6 . . . . . . . Terrain Scan Density 1 | . . . 1 . . . . . . . . . . . . Ranged Accuracy 3 | . . . . . . . . 3 . . . . . . . Hack Attack % 4 | . . . . . . . . . . . . . 4 . . KI Resistance % 1 | . . . . . . . . 1 . . . . . . . TH Resistance % 1 | . . . . . . . . 1 . . . . . . . EX Resistance % 1 | . . . . . . . . 1 . . . . . . . Protomatter Created 2905 | . 73 . 281 . . 30 316 1420 . 183 . . 181 306 115 Integrity Restored 4312 | . 30 . 310 . . 90 506 2135 . 150 . . 738 269 84 Core 4170 | . 30 . 310 . . 90 506 1993 . 150 . . 738 269 84 Parts 142 | . . . . . . . . 142 . . . . . . . Protomatter Decayed 1265 | . 63 . 138 . . . 119 556 . 46 . . 105 216 22 Game ------ Seed ThunderPointMicrothruster Manual? 0 Play Time 04:36:15 Cumulative 44.5 hours Start 2020.11.15 @ 18:26:09 End 2020.11.17 @ 16:08:09 Sessions 9 Manual Loads 0 Difficulty Explorer Special Mode Winter2019/RPGLIKE Game No. 34 Rogue 20 Adventurer 0 Explorer 14 Win Type - Total 0 Types 0/0/0/0/0/0/0/0/0 Lore% 23 Gallery% 31 Achievement% 26 Wizard Run 0 Options --------- ASCII 0 Keyboard 0 Movement Mouse Keybinds 0 Fullscreen 1 Font 18/X11Bold Map View 76x50 Tactical HUD 1 Map Filters NONE Filters NONE Steam 1 RUN: a313183e-0520-4a93-a785-914640e590c6